[Event "Turkish Women-ch Arzum 2022"]
[Site "Ayvalik"]
[Date "2022.03.11"]
[Round "9.9"]
[White "Catal, Uktenur"]
[Black "Keskinler, Ela"]
[Result "1-0"]
[ECO "D95"]
[WhiteElo "1832"]
[BlackElo "1400"]
[Annotator "NA"]
[PlyCount "141"]
[EventDate "2022.03.04"]
[EventType "swiss"]
[EventCountry "TUR"]
[SourceTitle "playchess.com"]
[Source "ChessBase"]
[SourceQuality "1"]
[TimeControl "5400+30"]

1. Nf3 d5 2. d4 {[%emt 0:00:30]} Nf6 {[%emt 0:01:30]} 3. c4 {[%emt 0:00:30]} c6 {[%emt 0:00:30]} 4. Nc3 {[%emt 0:00:30]} g6 {[%emt 0:00:00]} 5. Qb3 {[%emt 0:00:30]} Bg7 {[%emt 0:01:00]} 6. e3 {[%emt 0:00:30]} O-O {[%emt 0:00:30]} 7. Be2 {[%emt 0:00:30]} b6 {[%emt 0:01:30]} 8. O-O {[%emt 0:00:30]} Bf5 {[%emt 0:02:30]} 9. h3 {[%emt 0:02:30]} Qd6 {[%emt 0:05:30]} 10. Bd2 {[%emt 0:03:30]} Ne4 {[%emt 0:04:30]} (10... dxc4 $11 11. Bxc4 (11. Qxc4 b5 $11) 11... b5 12. Bxf7+ Rxf7) 11. cxd5 {[%emt 0:06:30]} Nxc3 {[%emt 0:00:30]} 12. Bxc3 {[%emt 0:02:30]} cxd5 {[%emt 0:00:30]} 13. Bb4 {[%emt 0:00:30]} Qd7 {[%emt 0:00:30]} 14. Rac1 {[%emt 0:00:30]} Be4 {[%emt 0:01:30]} (14... a5 $142) 15. Nd2 {[%emt 0:02:30]} ({Better is} 15. Ba3 $18) 15... a6 {[%emt 0:00:30]} (15... Bf5 $16) 16. Nxe4 {[%emt 0:08:30]} dxe4 {[%emt 0:00:30]} 17. Qc2 {[%emt 0:00:00]} Qb7 {[%emt 0:01:30]} 18. f3 {[%emt 0:04:00]} Bh6 {[%emt 0:01:30]} 19. Bd2 {[%emt 0:00:30]} f5 {[%emt 0:01:30]} 20. fxe4 {[%emt 0:00:00]} fxe4 {[%emt 0:01:30]} 21. Rxf8+ {[%emt 0:01:00]} Bxf8 {[%emt 0:01:30]} 22. Qc8 {[%emt 0:07:30]} Ra7 {[%emt 0:00:30]} 23. Qe6+ {[%emt 0:00:30]} Kg7 {[%emt 0:01:30]} 24. Bc4 {[%emt 0:01:30]} (24. Rf1 $142 Kh6 25. Qf7 e5 26. Qxf8+ Qg7 27. Qxb8 Qe7 28. dxe5 Rd7 29. Bc3) 24... Nd7 {[%emt 0:02:30]} 25. Qf7+ {[%emt 0:02:30]} (25. Rf1 $142 Qb8 26. Rf7+ Kh8 27. h4 Nf6 28. Rxf6 Bg7 29. Rf7 b5 30. Bd5) 25... Kh6 {[%emt 0:00:30]} 26. Be6 $18 {[%emt 0:03:30]} (26. Bd5 $142) 26... Qb8 {[%emt 0:00:30]} 27. d5 {[%emt 0:14:30]} Bg7 {[%emt 0:18:30]} 28. Qxe7 {[%emt 0:08:30]} Bxb2 {[%emt 0:00:30]} 29. Qh4+ {[%emt 0:01:30]} Kg7 {[%emt 0:00:30]} 30. Rc2 {[%emt 0:02:30]} Bf6 {[%emt 0:00:30]} 31. Qxe4 {[%emt 0:00:30]} Nc5 {[%emt 0:00:30]} 32. Qb4 {[%emt 0:02:30]} Qd6 {[%emt 0:00:30]} 33. Bc3 {[%emt 0:01:30]} Bxc3 {[%emt 0:18:30]} 34. Qxc3+ {[%emt 0:01:30]} Kh6 {[%emt 0:00:00]} 35. Qb4 {[%emt 0:03:30]} Qg3 {[%emt 0:10:00]} 36. Qf4+ {[%emt 0:07:05]} Qxf4 {[%emt 0:00:30]} 37. exf4 {[%emt 0:00:04]} Nxe6 {[%emt 0:00:30]} 38. dxe6 {[%emt 0:00:30]} Kg7 {[%emt 0:00:00]} 39. Rc6 {[%emt 0:00:17]} b5 {[%emt 0:00:00]} 40. Kf2 {[%emt 0:00:00]} Kf6 {[%emt 0:02:30]} 41. Kf3 {[%emt 0:00:27]} b4 {[%emt 0:02:30]} 42. Ke4 {[%emt 0:00:49]} a5 {[%emt 0:00:30]} 43. g4 {[%emt 0:03:10]} Rb7 {[%emt 0:00:30]} 44. Ra6 {[%emt 0:02:41]} Rb5 {[%emt 0:00:30]} 45. Kd4 {[%emt 0:00:29]} b3 {[%emt 0:02:15]} 46. axb3 {[%emt 0:01:23]} Rxb3 {[%emt 0:00:07]} 47. Kd5 {[%emt 0:02:20]} Rxh3 {[%emt 0:01:05]} 48. g5+ {[%emt 0:00:27]} Kf5 {[%emt 0:05:39]} 49. Rxa5 {[%emt 0:00:34]} Kxf4 {[%emt 0:01:01]} 50. Kd6 {[%emt 0:00:53]} Re3 {[%emt 0:00:45]} 51. e7 {[%emt 0:00:44]} Rd3+ {[%emt 0:01:27]} 52. Ke6 {[%emt 0:00:30]} Re3+ {[%emt 0:00:30]} 53. Kf7 {[%emt 0:00:00]} Kg4 {[%emt 0:00:00]} 54. e8=Q {[%emt 0:00:08]} Rxe8 {[%emt 0:00:21]} 55. Kxe8 {[%emt 0:00:30]} Kh5 {[%emt 0:00:30]} 56. Kf7 {[%emt 0:00:00]} h6 {[%emt 0:00:00]} 57. gxh6+ {[%emt 0:00:00]} Kxh6 {[%emt 0:00:13]} 58. Kf6 {[%emt 0:00:00]} Kh7 {[%emt 0:00:00]} 59. Ra1 {[%emt 0:00:38]} Kg8 {[%emt 0:00:00]} 60. Rh1 {[%emt 0:00:45]} g5 {[%emt 0:00:24]} 61. Rg1 {[%emt 0:00:00]} Kf8 {[%emt 0:00:13]} 62. Rxg5 {[%emt 0:00:18]} Ke8 {[%emt 0:00:00]} 63. Rg7 {[%emt 0:00:21]} Kd8 {[%emt 0:00:08]} 64. Re7 {[%emt 0:00:30]} Kc8 {[%emt 0:00:30]} 65. Ke6 {[%emt 0:00:00]} Kd8 {[%emt 0:00:00]} 66. Kd6 {[%emt 0:00:00]} Kc8 {[%emt 0:00:00]} 67. Rd7 {[%emt 0:00:12]} Kb8 {[%emt 0:00:18]} 68. Rc7 {[%emt 0:00:30]} Ka8 {[%emt 0:00:00]} 69. Kc6 {[%emt 0:00:00]} Kb8 {[%emt 0:00:00]} 70. Kb6 {[%emt 0:00:00]} Ka8 {[%emt 0:00:10]} 71. Rc8# {[%emt 0:00:19]} 1-0

[Event "Turkish Women-ch Arzum 2022"]
[Site "Ayvalik"]
[Date "2022.03.11"]
[Round "9.10"]
[White "Gulceken, Sumeyye"]
[Black "Karatiken, Seray"]
[Result "1/2-1/2"]
[ECO "E91"]
[WhiteElo "1591"]
[BlackElo "1717"]
[Annotator "NA"]
[PlyCount "80"]
[EventDate "2022.03.04"]
[EventType "swiss"]
[EventCountry "TUR"]
[SourceTitle "playchess.com"]
[Source "ChessBase"]
[SourceQuality "1"]
[TimeControl "5400+30"]

1. d4 Nf6 2. c4 {[%emt 0:00:30]} g6 {[%emt 0:02:30]} 3. Nc3 {[%emt 0:00:30]} Bg7 {[%emt 0:00:30]} 4. e4 {[%emt 0:00:00]} d6 {[%emt 0:00:00]} 5. Nf3 {[%emt 0:00:00]} O-O {[%emt 0:00:00]} 6. Be2 {[%emt 0:00:30]} c5 {[%emt 0:00:30]} 7. d5 {[%emt 0:00:00]} Ne8 {[%emt 0:25:30]} 8. O-O {[%emt 0:00:00]} Na6 {[%emt 0:05:30]} 9. h3 {[%emt 0:03:30]} f5 {[%emt 0:02:30]} 10. exf5 {[%emt 0:02:30]} Bxf5 {[%emt 0:00:30]} 11. Nh4 {[%emt 0:02:30]} Bc8 {[%emt 0:09:30]} 12. Bg4 {[%emt 0:09:30]} e5 {[%emt 0:04:30]} 13. Bxc8 {[%emt 0:02:30]} Rxc8 {[%emt 0:00:30]} 14. Nf3 {[%emt 0:00:30]} Nac7 {[%emt 0:03:30]} 15. Bg5 {[%emt 0:05:30]} Qd7 {[%emt 0:00:30]} 16. a4 {[%emt 0:02:30]} Nf6 {[%emt 0:10:30]} 17. Be3 {[%emt 0:07:30]} Nh5 {[%emt 0:03:30]} 18. Nb5 {[%emt 0:05:30]} Nxb5 {[%emt 0:12:38]} 19. axb5 {[%emt 0:00:30]} b6 {[%emt 0:05:02]} 20. Ng5 {[%emt 0:01:30]} Bf6 {[%emt 0:03:58]} 21. Ne6 {[%emt 0:00:30]} Rf7 {[%emt 0:02:02]} 22. Ra6 {[%emt 0:05:30]} Ng7 {[%emt 0:01:34]} 23. Qg4 {[%emt 0:00:00]} Re8 {[%emt 0:01:53]} 24. Rfa1 {[%emt 0:02:00]} Nxe6 {[%emt 0:01:14]} 25. dxe6 {[%emt 0:00:00]} Qxe6 {[%emt 0:00:23]} 26. Qxe6 {[%emt 0:00:00]} Rxe6 {[%emt 0:00:30]} 27. Rxa7 {[%emt 0:00:30]} e4 {[%emt 0:01:32]} 28. Rxf7 {[%emt 0:00:30]} Kxf7 {[%emt 0:00:30]} 29. Ra6 {[%emt 0:00:30]} Bd8 {[%emt 0:01:44]} 30. Kf1 {[%emt 0:03:30]} h5 {[%emt 0:00:15]} 31. Ke2 {[%emt 0:00:00]} Ke8 {[%emt 0:00:46]} 32. Ra7 {[%emt 0:08:00]} d5 {[%emt 0:01:24]} 33. cxd5 {[%emt 0:01:30]} Rd6 {[%emt 0:00:01]} 34. Ra4 {[%emt 0:04:30]} Rxd5 {[%emt 0:00:30]} 35. Rxe4+ {[%emt 0:00:30]} Kf7 {[%emt 0:00:00]} 36. b4 {[%emt 0:04:30]} Be7 {[%emt 0:01:07]} 37. bxc5 {[%emt 0:03:30]} Bxc5 {[%emt 0:00:02]} 38. Bxc5 {[%emt 0:05:30]} Rxc5 {[%emt 0:00:31]} 39. Rb4 {[%emt 0:00:30]} Ke6 {[%emt 0:00:00]} 40. Kd3 {[%emt 0:00:30]} Kd6 {[%emt 0:01:09]} 1/2-1/2

[Event "Turkish Women-ch Arzum 2022"]
[Site "Ayvalik"]
[Date "2022.03.11"]
[Round "9.11"]
[White "Kipik, Feyza"]
[Black "Aydogan, Arya"]
[Result "1-0"]
[ECO "C54"]
[WhiteElo "1603"]
[BlackElo "1328"]
[Annotator "NA"]
[PlyCount "145"]
[EventDate "2022.03.04"]
[EventType "swiss"]
[EventCountry "TUR"]
[SourceTitle "playchess.com"]
[Source "ChessBase"]
[SourceQuality "1"]
[TimeControl "5400+30"]

1. e4 e5 2. Nf3 {[%emt 0:01:30]} Nc6 {[%emt 0:01:30]} 3. d4 {[%emt 0:00:30]} exd4 {[%emt 0:00:30]} 4. Bc4 {[%emt 0:00:30]} Bc5 {[%emt 0:00:30]} 5. c3 {[%emt 0:00:30]} Nf6 {[%emt 0:01:30]} 6. e5 {[%emt 0:00:30]} d5 {[%emt 0:00:30]} 7. Bb5 {[%emt 0:00:30]} Ne4 {[%emt 0:00:30]} 8. cxd4 {[%emt 0:00:30]} Bb6 {[%emt 0:00:30]} 9. Nc3 {[%emt 0:00:30]} O-O {[%emt 0:00:30]} 10. Be3 {[%emt 0:01:30]} Bg4 {[%emt 0:01:30]} 11. h3 {[%emt 0:00:30]} Bh5 {[%emt 0:00:30]} 12. Qc2 {[%emt 0:01:30]} Bg6 {[%emt 0:00:30]} 13. Qb3 {[%emt 0:01:30]} Ne7 {[%emt 0:01:30]} 14. Nh4 {[%emt 0:09:30]} c6 {[%emt 0:09:30]} 15. Nxg6 {[%emt 0:01:30]} hxg6 {[%emt 0:06:30]} 16. Bd3 {[%emt 0:13:30]} Nf5 {[%emt 0:03:30]} 17. Bxe4 {[%emt 0:09:30]} dxe4 {[%emt 0:16:30]} 18. O-O-O {[%emt 0:04:30]} Nxd4 {[%emt 0:10:30]} 19. Qc4 {[%emt 0:23:30]} c5 {[%emt 0:01:30]} 20. Nxe4 {[%emt 0:00:30]} Rc8 {[%emt 0:15:30]} 21. Kb1 {[%emt 0:00:30]} Qe7 {[%emt 0:07:32]} 22. f4 {[%emt 0:03:30]} a6 {[%emt 0:02:10]} 23. h4 {[%emt 0:01:30]} Ba7 {[%emt 0:03:59]} 24. h5 {[%emt 0:04:30]} b5 {[%emt 0:01:27]} 25. Qf1 {[%emt 0:00:53]} Qe6 {[%emt 0:03:28]} 26. Bxd4 {[%emt 0:07:07]} cxd4 {[%emt 0:02:25]} 27. Nd6 {[%emt 0:01:13]} Rcd8 {[%emt 0:01:35]} 28. hxg6 {[%emt 0:00:25]} fxg6 {[%emt 0:02:15]} 29. Ka1 {[%emt 0:04:06]} Bb8 {[%emt 0:01:27]} 30. Rxd4 {[%emt 0:04:40]} Bxd6 {[%emt 0:00:29]} 31. Rxd6 {[%emt 0:00:33]} Rxd6 {[%emt 0:00:37]} 32. exd6 {[%emt 0:00:30]} Qxd6 {[%emt 0:00:30]} 33. g3 {[%emt 0:00:00]} Rd8 {[%emt 0:00:40]} 34. a3 {[%emt 0:00:00]} Qe6 {[%emt 0:00:34]} 35. Qf2 {[%emt 0:00:57]} Qg4 {[%emt 0:01:06]} 36. Qe1 {[%emt 0:01:18]} Qf5 {[%emt 0:01:07]} 37. Qe7 {[%emt 0:01:21]} Qf6 {[%emt 0:00:29]} 38. Qe3 {[%emt 0:00:30]} Qc6 {[%emt 0:00:35]} 39. Rc1 {[%emt 0:00:52]} Qd6 {[%emt 0:00:34]} 40. Qb3+ {[%emt 0:00:41]} Kf8 {[%emt 0:00:25]} 41. Rh1 {[%emt 0:00:27]} Qd5 {[%emt 0:00:26]} 42. Rh8+ {[%emt 0:01:26]} Kf7 {[%emt 0:00:58]} 43. Qxd5+ {[%emt 0:00:30]} Rxd5 {[%emt 0:00:00]} 44. Ra8 {[%emt 0:00:00]} Rd6 {[%emt 0:00:37]} 45. Ka2 {[%emt 0:01:03]} Kf6 {[%emt 0:00:19]} 46. Ra7 {[%emt 0:00:48]} Re6 {[%emt 0:01:08]} 47. Kb1 {[%emt 0:00:48]} Kf5 {[%emt 0:01:12]} 48. Rxg7 {[%emt 0:00:23]} Kg4 {[%emt 0:00:00]} 49. Kc2 {[%emt 0:00:54]} Rf6 {[%emt 0:00:37]} 50. Kb3 {[%emt 0:00:39]} Kxg3 {[%emt 0:00:58]} 51. f5 {[%emt 0:00:10]} Rxf5 {[%emt 0:00:20]} 52. Rxg6+ {[%emt 0:00:04]} Kf3 {[%emt 0:00:25]} 53. Rxa6 {[%emt 0:00:06]} Ke3 {[%emt 0:00:37]} 54. Rd6 {[%emt 0:01:12]} Ke4 {[%emt 0:00:59]} 55. Kb4 {[%emt 0:00:24]} Rf2 {[%emt 0:00:55]} 56. b3 {[%emt 0:00:13]} Rb2 {[%emt 0:00:45]} 57. Rb6 {[%emt 0:00:18]} Kd4 {[%emt 0:00:59]} 58. Rxb5 {[%emt 0:00:16]} Kd3 {[%emt 0:00:00]} 59. Rc5 {[%emt 0:00:46]} Kd4 {[%emt 0:00:24]} 60. Rc4+ {[%emt 0:00:44]} Kd5 {[%emt 0:00:19]} 61. a4 {[%emt 0:00:15]} Ra2 {[%emt 0:00:27]} 62. a5 {[%emt 0:00:47]} Ra1 {[%emt 0:00:11]} 63. Kb5 {[%emt 0:00:00]} Rb1 {[%emt 0:00:26]} 64. b4 {[%emt 0:00:20]} Ra1 {[%emt 0:00:13]} 65. Rc5+ {[%emt 0:00:49]} Kd6 {[%emt 0:00:30]} 66. a6 {[%emt 0:00:00]} Ra2 {[%emt 0:00:22]} 67. Kb6 {[%emt 0:00:00]} Rb2 {[%emt 0:00:22]} 68. b5 {[%emt 0:00:16]} Ra2 {[%emt 0:00:30]} 69. Rc6+ {[%emt 0:00:30]} Kd7 {[%emt 0:00:00]} 70. Kb7 {[%emt 0:00:00]} Rb2 {[%emt 0:00:00]} 71. b6 {[%emt 0:00:13]} Ra2 {[%emt 0:00:18]} 72. a7 {[%emt 0:00:00]} Ra3 {[%emt 0:00:18]} 73. Rc7+ {[%emt 0:00:12]} 1-0

[Event "Turkish Women-ch Arzum 2022"]
[Site "Ayvalik"]
[Date "2022.03.11"]
[Round "9.12"]
[White "Demirtas, Hafize"]
[Black "Buyuk, Ecrin Efsa"]
[Result "1-0"]
[ECO "B11"]
[WhiteElo "1779"]
[BlackElo "1565"]
[Annotator "NA"]
[PlyCount "102"]
[EventDate "2022.03.04"]
[EventType "swiss"]
[EventCountry "TUR"]
[SourceTitle "playchess.com"]
[Source "ChessBase"]
[SourceQuality "1"]
[TimeControl "5400+30"]

1. e4 c6 2. Nc3 d5 3. Nf3 Nf6 4. e5 Ne4 5. Ne2 {[%emt 0:01:00]} Qb6 {[%emt 0:01:00]} 6. d4 {[%emt 0:00:30]} e6 {[%emt 0:00:30]} 7. Nfg1 {[%emt 0:01:30]} f6 {[%emt 0:00:30]} 8. f3 {[%emt 0:00:00]} Ng5 {[%emt 0:00:00]} 9. exf6 {[%emt 0:00:00]} gxf6 {[%emt 0:00:00]} 10. f4 {[%emt 0:00:30]} Ne4 {[%emt 0:00:00]} 11. Ng3 {[%emt 0:00:30]} Bd7 {[%emt 0:00:00]} 12. c3 {[%emt 0:01:30]} c5 {[%emt 0:02:30]} 13. Nxe4 {[%emt 0:00:30]} dxe4 {[%emt 0:00:00]} 14. d5 {[%emt 0:00:30]} exd5 {[%emt 0:00:00]} 15. Qh5+ {[%emt 0:00:30]} Kd8 {[%emt 0:00:30]} 16. Qxd5 {[%emt 0:01:30]} Nc6 {[%emt 0:25:30]} 17. Be3 {[%emt 0:15:30]} Kc7 {[%emt 0:09:30]} 18. Rd1 {[%emt 0:12:30]} Rd8 {[%emt 0:02:30]} 19. Rd2 {[%emt 0:01:30]} Bg4 {[%emt 0:09:30]} 20. Qf7+ {[%emt 0:01:30]} Be7 {[%emt 0:01:30]} 21. b4 {[%emt 0:00:30]} Rxd2 {[%emt 0:02:30]} 22. Kxd2 {[%emt 0:00:30]} Rd8+ {[%emt 0:01:30]} 23. Ke1 {[%emt 0:00:30]} Rd7 {[%emt 0:01:30]} 24. Kf2 {[%emt 0:03:30]} a5 {[%emt 0:04:30]} 25. a3 {[%emt 0:03:30]} axb4 {[%emt 0:01:30]} 26. axb4 {[%emt 0:00:30]} Qa7 {[%emt 0:07:30]} 27. h3 {[%emt 0:02:30]} Bf5 {[%emt 0:02:30]} 28. g4 {[%emt 0:00:30]} Bg6 {[%emt 0:00:30]} 29. Qb3 {[%emt 0:05:30]} f5 {[%emt 0:00:30]} 30. Bc4 {[%emt 0:06:30]} Qa1 {[%emt 0:02:30]} 31. bxc5 {[%emt 0:04:30]} Rd1 {[%emt 0:04:30]} 32. Be2 {[%emt 0:08:30]} Rb1 {[%emt 0:00:30]} 33. Qc4 {[%emt 0:10:30]} Bh4+ {[%emt 0:03:30]} 34. Kg2 {[%emt 0:00:30]} Qb2 {[%emt 0:05:56]} 35. Rh2 {[%emt 0:00:32]} Be1 {[%emt 0:02:45]} 36. gxf5 {[%emt 0:04:34]} Bh5 {[%emt 0:01:38]} 37. Kh1 {[%emt 0:00:09]} Bxe2 {[%emt 0:02:35]} 38. Rxe2 {[%emt 0:00:11]} Qxc3 {[%emt 0:01:29]} 39. Qxe4 {[%emt 0:05:57]} Rd1 {[%emt 0:00:26]} 40. f6 {[%emt 0:02:52]} Qxf6 {[%emt 0:00:45]} 41. Qxh7+ {[%emt 0:00:08]} Rd7 {[%emt 0:01:23]} 42. Qh5 {[%emt 0:00:12]} Bb4 {[%emt 0:00:15]} 43. Qg5 {[%emt 0:00:57]} Qc3 {[%emt 0:00:43]} 44. Qf5 {[%emt 0:01:51]} Rd3 {[%emt 0:02:01]} 45. Qh7+ {[%emt 0:01:12]} Kb8 {[%emt 0:03:30]} 46. Qe4 {[%emt 0:00:21]} Rd1 {[%emt 0:00:55]} 47. Kg2 {[%emt 0:02:44]} Bxc5 {[%emt 0:00:33]} 48. Nf3 {[%emt 0:01:06]} Qc1 {[%emt 0:01:02]} 49. f5 {[%emt 0:02:14]} Qc3 {[%emt 0:00:47]} 50. Qf4+ {[%emt 0:00:40]} Kc8 {[%emt 0:00:37]} 51. f6 {[%emt 0:00:32]} Qd3 {[%emt 0:01:08]} 1-0

[Event "Turkish Women-ch Arzum 2022"]
[Site "Ayvalik"]
[Date "2022.03.11"]
[Round "9.13"]
[White "Sezer, Ipek"]
[Black "Kalayci, Nino"]
[Result "1/2-1/2"]
[ECO "D35"]
[WhiteElo "1329"]
[BlackElo "1775"]
[Annotator "NA"]
[PlyCount "70"]
[EventDate "2022.03.04"]
[EventType "swiss"]
[EventCountry "TUR"]
[SourceTitle "playchess.com"]
[Source "ChessBase"]
[SourceQuality "1"]
[TimeControl "5400+30"]

1. d4 d5 2. c4 e6 3. Nc3 Nf6 4. cxd5 exd5 5. Bg5 {[%emt 0:01:00]} Nbd7 {[%emt 0:02:00]} 6. e3 {[%emt 0:01:30]} c6 {[%emt 0:00:30]} 7. Bd3 {[%emt 0:00:30]} Be7 {[%emt 0:00:30]} 8. Nge2 {[%emt 0:00:00]} O-O {[%emt 0:00:30]} 9. O-O {[%emt 0:00:00]} Ne4 {[%emt 0:10:30]} 10. Bxe7 {[%emt 0:03:30]} Qxe7 {[%emt 0:00:30]} 11. Qc2 {[%emt 0:00:30]} f5 {[%emt 0:00:30]} 12. Nf4 {[%emt 0:03:30]} Ndf6 {[%emt 0:02:30]} 13. Rae1 {[%emt 0:01:30]} g5 {[%emt 0:03:30]} 14. Nh3 {[%emt 0:02:30]} Qg7 {[%emt 0:10:30]} 15. f3 {[%emt 0:01:30]} Nd6 {[%emt 0:06:30]} 16. Kh1 {[%emt 0:13:30]} Bd7 {[%emt 0:28:30]} 17. Nf2 {[%emt 0:16:30]} Rae8 {[%emt 0:05:30]} 18. e4 {[%emt 0:05:30]} fxe4 {[%emt 0:00:30]} 19. fxe4 {[%emt 0:00:30]} Nfxe4 {[%emt 0:04:30]} 20. Nfxe4 {[%emt 0:00:30]} dxe4 {[%emt 0:06:44]} 21. Nxe4 {[%emt 0:02:30]} Nxe4 {[%emt 0:03:27]} 22. Bxe4 {[%emt 0:00:30]} Kh8 {[%emt 0:02:02]} 23. Qc5 {[%emt 0:06:30]} h6 {[%emt 0:04:11]} 24. Rxf8+ {[%emt 0:12:30]} Qxf8 {[%emt 0:00:02]} 25. Qxf8+ {[%emt 0:00:30]} Rxf8 {[%emt 0:00:01]} 26. Kg1 {[%emt 0:00:30]} Re8 {[%emt 0:05:30]} 27. Kf2 {[%emt 0:01:30]} Rf8+ {[%emt 0:00:30]} 28. Kg1 {[%emt 0:00:00]} Rf4 {[%emt 0:01:35]} 29. g3 {[%emt 0:00:00]} Rf8 {[%emt 0:02:22]} 30. d5 {[%emt 0:02:30]} Re8 {[%emt 0:01:27]} 31. Kf2 {[%emt 0:00:30]} Rf8+ {[%emt 0:00:17]} 32. Kg1 {[%emt 0:00:30]} Re8 {[%emt 0:00:30]} 33. Kf2 {[%emt 0:00:00]} Rf8+ {[%emt 0:00:38]} 34. Kg1 {[%emt 0:00:00]} Re8 {[%emt 0:00:39]} 35. Kf2 {[%emt 0:00:00]} Rf8+ {[%emt 0:00:08]} 1/2-1/2

[Event "Turkish Women-ch Arzum 2022"]
[Site "Ayvalik"]
[Date "2022.03.11"]
[Round "9.14"]
[White "Tanir, Simay"]
[Black "Incecik, Seyma Zeynep"]
[Result "1/2-1/2"]
[ECO "E40"]
[WhiteElo "1510"]
[BlackElo "1777"]
[Annotator "NA"]
[PlyCount "163"]
[EventDate "2022.03.04"]
[EventType "swiss"]
[EventCountry "TUR"]
[SourceTitle "playchess.com"]
[Source "ChessBase"]
[SourceQuality "1"]
[TimeControl "5400+30"]

1. d4 Nf6 2. c4 e6 3. Nc3 Bb4 {[%emt 0:01:00]} 4. e3 {[%emt 0:01:30]} c6 {[%emt 0:02:30]} 5. Bd3 {[%emt 0:03:30]} d5 {[%emt 0:00:30]} 6. cxd5 {[%emt 0:04:30]} exd5 {[%emt 0:00:30]} 7. Qc2 {[%emt 0:02:30]} Bg4 {[%emt 0:05:30]} 8. Bd2 {[%emt 0:04:30]} Bh5 {[%emt 0:01:30]} 9. Nf3 {[%emt 0:05:30]} Bg6 {[%emt 0:01:30]} 10. O-O {[%emt 0:06:30]} Bxd3 {[%emt 0:01:30]} 11. Qxd3 {[%emt 0:00:00]} O-O {[%emt 0:00:30]} 12. Ne5 {[%emt 0:06:00]} Nfd7 {[%emt 0:06:30]} 13. f4 {[%emt 0:06:30]} Bxc3 {[%emt 0:01:30]} 14. Bxc3 {[%emt 0:01:30]} Nf6 {[%emt 0:00:30]} 15. Be1 {[%emt 0:05:30]} Ne4 {[%emt 0:01:30]} 16. f5 {[%emt 0:02:30]} f6 {[%emt 0:04:30]} 17. Nf3 {[%emt 0:04:30]} Nd7 {[%emt 0:02:30]} 18. Rd1 {[%emt 0:02:30]} Nb6 {[%emt 0:00:30]} 19. Ba5 {[%emt 0:00:30]} Qd7 {[%emt 0:02:30]} 20. Bxb6 {[%emt 0:03:30]} axb6 {[%emt 0:00:00]} 21. Nd2 {[%emt 0:04:30]} Rfe8 {[%emt 0:05:00]} 22. Qb3 {[%emt 0:04:30]} b5 {[%emt 0:02:30]} 23. Rf4 {[%emt 0:01:30]} Nxd2 {[%emt 0:03:30]} 24. Rxd2 {[%emt 0:00:30]} Kh8 {[%emt 0:03:30]} 25. a3 {[%emt 0:01:30]} Re7 {[%emt 0:00:30]} 26. Qd3 {[%emt 0:06:30]} Rae8 {[%emt 0:01:30]} 27. Re2 {[%emt 0:00:30]} Qd6 {[%emt 0:01:30]} 28. g3 {[%emt 0:01:30]} Re4 {[%emt 0:02:30]} 29. b4 {[%emt 0:00:30]} Qd7 {[%emt 0:01:30]} 30. Kf2 {[%emt 0:02:30]} Kg8 {[%emt 0:01:30]} 31. Kg2 {[%emt 0:02:25]} Kf7 {[%emt 0:00:30]} 32. Kf1 {[%emt 0:01:57]} R8e7 {[%emt 0:01:30]} 33. Rxe4 {[%emt 0:05:09]} Qxf5+ {[%emt 0:00:00]} 34. Rf2 {[%emt 0:00:17]} Qxe4 {[%emt 0:01:00]} 35. Qxe4 {[%emt 0:00:30]} Rxe4 {[%emt 0:00:30]} 36. Ke2 {[%emt 0:00:00]} Re8 {[%emt 0:00:30]} 37. Kf3 {[%emt 0:00:32]} Ra8 {[%emt 0:00:30]} 38. Ra2 {[%emt 0:00:34]} f5 {[%emt 0:00:30]} 39. Kf4 {[%emt 0:00:38]} Kf6 {[%emt 0:00:30]} 40. h4 {[%emt 0:00:14]} h6 {[%emt 0:00:30]} 41. h5 {[%emt 0:02:37]} Re8 {[%emt 0:00:30]} 42. a4 {[%emt 0:01:12]} bxa4 {[%emt 0:01:30]} 43. Rxa4 {[%emt 0:00:37]} Re4+ {[%emt 0:00:30]} 44. Kf3 {[%emt 0:00:30]} Kg5 {[%emt 0:00:00]} 45. Ra7 {[%emt 0:00:31]} Re7 {[%emt 0:00:00]} 46. b5 {[%emt 0:01:27]} cxb5 {[%emt 0:00:00]} 47. Ra5 {[%emt 0:00:05]} Kxh5 {[%emt 0:09:00]} 48. Rxb5 {[%emt 0:00:18]} Kg5 {[%emt 0:00:00]} 49. Rxd5 {[%emt 0:00:40]} Kf6 {[%emt 0:00:00]} 50. Rb5 {[%emt 0:01:42]} g5 {[%emt 0:05:30]} 51. Rb6+ {[%emt 0:00:59]} Kg7 {[%emt 0:00:30]} 52. g4 {[%emt 0:00:27]} fxg4+ {[%emt 0:01:30]} 53. Kxg4 {[%emt 0:00:30]} Rxe3 {[%emt 0:00:30]} 54. Rxb7+ {[%emt 0:00:00]} Kf6 {[%emt 0:00:00]} 55. d5 {[%emt 0:01:18]} Re4+ {[%emt 0:01:00]} 56. Kg3 {[%emt 0:00:29]} Ke5 {[%emt 0:02:30]} 57. d6 {[%emt 0:00:48]} Rd4 {[%emt 0:04:30]} 58. d7 {[%emt 0:01:48]} Rd6 {[%emt 0:00:30]} 59. Kg4 {[%emt 0:00:52]} Ke6 {[%emt 0:00:30]} 60. d8=Q {[%emt 0:01:41]} Rxd8 {[%emt 0:00:30]} 61. Kh5 {[%emt 0:00:09]} Rg8 {[%emt 0:13:14]} 62. Rb4 {[%emt 0:00:52]} Kf6 {[%emt 0:02:08]} 63. Rb6+ {[%emt 0:00:35]} Kf5 {[%emt 0:00:30]} 64. Rb5+ {[%emt 0:00:30]} Ke4 {[%emt 0:00:00]} 65. Rb4+ {[%emt 0:00:00]} Kd5 {[%emt 0:00:27]} 66. Rg4 {[%emt 0:00:23]} Rh8 {[%emt 0:00:43]} 67. Ra4 {[%emt 0:00:46]} Kc5 {[%emt 0:02:15]} 68. Rg4 {[%emt 0:00:36]} Kd6 {[%emt 0:00:59]} 69. Ra4 {[%emt 0:00:30]} Ke6 {[%emt 0:00:00]} 70. Ra6+ {[%emt 0:00:09]} Kf5 {[%emt 0:00:19]} 71. Ra5+ {[%emt 0:00:30]} Ke4 {[%emt 0:00:30]} 72. Ra4+ {[%emt 0:00:30]} Kd3 {[%emt 0:00:30]} 73. Ra3+ {[%emt 0:00:00]} Kc4 {[%emt 0:00:00]} 74. Ra4+ {[%emt 0:00:00]} Kd3 {[%emt 0:00:00]} 75. Ra3+ {[%emt 0:00:00]} Kc2 {[%emt 0:00:00]} 76. Ra4 {[%emt 0:00:18]} Rg8 {[%emt 0:00:27]} 77. Rg4 {[%emt 0:00:30]} Rh8 {[%emt 0:00:01]} 78. Ra4 {[%emt 0:00:11]} Rf8 {[%emt 0:00:30]} 79. Kxh6 {[%emt 0:00:00]} Rf4 {[%emt 0:00:23]} 80. Ra2+ {[%emt 0:00:22]} Kb3 {[%emt 0:00:30]} 81. Rg2 {[%emt 0:00:00]} Rf8 {[%emt 0:00:02]} 82. Rxg5 {[%emt 0:00:00]} 1/2-1/2